{"text_format":"1","workbook":"xlsx","n_sheets":4,"sheets":["Destinataires","Infos virements","Feuil1","Activation"],"not_rendered":{"charts":0,"images":0,"macros":1,"external_links":0,"defined_names":39,"comments":0,"pivot_tables":0},"unopened":[],"bounds":{"document_bytes":16777216,"sheet_cells":100000,"rows_first":2000,"rows_last":500,"rows_between":2000,"halvings":0,"cell_chars":16384,"cell_head_chars":4096},"cells_cut":0,"cells_raw":0,"read":"whole","date_system":"1900"}

{"sheet":"Destinataires","index":0,"n_rows":26,"n_cols":30,"rows_kept":26,"cut":false,"hidden":false,"merged":[]}
["Id Fournisseur","Nom du destinataire","BIC","IBAN","Currency","CD","Janvier",{"$f":"\"Ref \" &G1","v":"Ref Janvier"},"Fevrier",{"$f":"\"Ref \" &I1","v":"Ref Fevrier"},"Mars",{"$f":"\"Ref \" &K1","v":"Ref Mars"},"Avril",{"$f":"\"Ref \" &M1","v":"Ref Avril"},"Mai",{"$f":"\"Ref \" &O1","v":"Ref Mai"},"Juin",{"$f":"\"Ref \" &Q1","v":"Ref Juin"},"Juillet",{"$f":"\"Ref \" &S1","v":"Ref Juillet"},"Août",{"$f":"\"Ref \" &U1","v":"Ref Août"},"Septembre",{"$f":"\"Ref \" &W1","v":"Ref Septembre"},"Octobre",{"$f":"\"Ref \" &Y1","v":"Ref Octobre"},"Novembre",{"$f":"\"Ref \" &AA1","v":"Ref Novembre"},"Decembre",{"$f":"\"Ref \" &AC1","v":"Ref Decembre"}]
["FF001","Bank de la Tunisie","BNPAFRPPXX1","TN5911011000108900178813","EUR","SCOR",12346,{"$f":"\"HA \"&G$1 & ROW()","v":"HA Janvier2"},{"$f":"G2*1.6","v":19753.600000000002},"Salaire Fev",1234,"Facture",55467,{"$f":"\"HA \"&M$1 & ROW()","v":"HA Avril2"},3000,"Essai",null,null,123000,"Essai",null,null,null,null,null,null,null,null,30000,"R & D"]
["FF002","Fournisseur2","BNPAFRPPXX2","FR7630001007941234567890185","EUR","SCOR",123,{"$f":"\"HA \"&G$1 & ROW()","v":"HA Janvier3"},{"$f":"G3*1.6","v":196.8},"HA Fevrier3",546477,{"$f":"\"HA \"&K$1 & ROW()","v":"HA Mars3"},74747,{"$f":"\"HA \"&M$1 & ROW()","v":"HA Avril3"},null,null,null,null,12000,"Gratuit"]
["FF003","Rekall","PSSTFRPPPAR","AL90208110080000001039531801","EUR","SCOR",45600,"HA Janvier4",72960,"Avoir",4000,"Avoir",23,{"$f":"\"HA \"&M$1 & ROW()","v":"HA Avril4"},20000,"Prospect"]
["FF004","Le Developpement Industriel","PSSTFRPPPAR","AT131490022010010999","EUR","SCOR",1000,"HA Janvier5",1600,"HA Fevrier5",5555,"Salaire",null,null,10000,{"$f":"\"HA \"&O$1 & ROW()","v":"HA Mai5"},null,null,null,null,null,null,null,null,null,null,null,null,20000,"Echantillon"]
["FF005","COGIP","PSSTFRPPPAR","BE68844010370034","EUR","SCOR",null,null,null,null,90000]
["FF006","France Hebdo","PSSTFRPPPAR","CZ4201000000195505030267","EUR","SCOR",9000,{"$f":"\"HA \"&G$1 & ROW()","v":"HA Janvier7"},14400,"Avoir 234",1223]
["FF007","Factory Mode","PSSTFRPPPAR","EE342200221034126658","EUR","SCOR",1000,"HA Janvier8",null,null,4555,"Service Urgent",null,null,null,null,null,null,null,null,null,null,null,null,null,null,null,null,12333,"Foire"]
["FF008","Canapi","PSSTFRPPPAR","FI9814283500171141","EUR","SCOR",1001,{"$f":"\"HA \"&G$1 & ROW()","v":"HA Janvier9"},null,null,null,null,null,null,23444,"Service"]
["FF009","Santhe/Sienar Technologies","PSSTFRPPPAR","FR7630066100410001057380116","EUR","SCOR",1002,"HA Janvier10"]
["FF010","Rosserys  et  Wichcraft","PSSTFRPPPAR","DE12500105170648489890","EUR","SCOR",1003,"HA Janvier11"]
["FF011","Madone","PSSTFRPPPAR","HU29117080012054779400000000","EUR","SCOR",1004,"HA Janvier12"]
["FF012","Kiff","PSSTFRPPPAR","IE92BOFI90001710027952","EUR","SCOR",1005,"HA Janvier13"]
["FF013","Aaltra","PSSTFRPPPAR","IT68D0300203280000400162854","EUR","SCOR",1006,"HA Janvier14"]
["FF014","Geugene Industrie","PSSTFRPPPAR","LI1008800000020176306","EUR","SCOR",1007,"HA Janvier15"]
["FF015","6000 SUX","PSSTFRPPPAR","LU761111000872960000","EUR","SCOR",1008,"HA Janvier16"]
["FF016","O.C.P.","PSSTFRPPPAR","MT98MMEB44093000000009027293051","EUR","SCOR"]
["FF017","Groobad","PSSTFRPPPAR","NL18ABNA0484869868","EUR","SCOR"]
["FF018","Somnolos","PSSTFRPPPAR","PL37109024020000000610000434","EUR","SCOR"]
["FF019","Stay-Puft","PSSTFRPPPAR","PT50003506830000000784311","EUR","SCOR"]
["FF020","Tricatel","PSSTFRPPPAR","SE6412000000012170145230","EUR","SCOR"]
["FF021","Radio Plus","PSSTFRPPPAR","CH3908704016075473007","EUR","SCOR"]
["FF022","Red Apple","PSSTFRPPPAR","SK9311110000001057361004","EUR","SCOR"]
["FF023","Pyramid Transnational","PSSTFRPPPAR","SI56031001001300933","EUR","SCOR"]
["FF024","HAL Labs","PSSTFRPPPAR","ES1020903200500041045040","EUR","SCOR"]
["FF025","Guide Duchemin","PSSTFRPPPAR","IT68D0300203280000400162854","EUR","SCOR"]

{"sheet":"Infos virements","index":1,"n_rows":17,"n_cols":9,"rows_kept":17,"cut":false,"hidden":false,"merged":[]}
[]
["identifiant","235/433/127",null,null,null,null,null,"Juillet"]
["date création",{"$f":"NOW()","v":"2024-02-08T13:41:18.910"},null,null,null,null,null,">0"]
["Nombre de transactions",{"$f":"COUNTA(Tableau1[montant])","v":2},null,null,null,null,null,true,"18/01/2024"]
["Somme de contrôle",{"$f":"SUM(Tableau1[montant])","v":135000},null,null,null,null,null,true]
["Nom","XYZ",null,null,null,null,null,true]
[]
[]
["ns1:PmtInfId","ns1:PmtMtd","ns1:ReqdExctnDt","ns1:IBAN","ns1:BIC","ns1:Nm"]
["Deuxieme tranche","TRF","2017-02-05","FR7630076020821234567890186","BNPAFRPPXX1","Sociéte xyz"]
[]
[]
[]
[]
["Id Fournisseur","Nom du destinataire","BIC","IBAN","Currency","CD","montant","Ref"]
["FF001","Bank de la Tunisie","BNPAFRPPXX1","TN5911011000108900178813","EUR","SCOR",123000,"Essai"]
["FF002","Fournisseur2","BNPAFRPPXX2","FR7630001007941234567890185","EUR","SCOR",12000,"Gratuit"]

{"sheet":"Feuil1","index":2,"n_rows":13,"n_cols":3,"rows_kept":13,"cut":false,"hidden":true,"merged":[]}
[2]
[null,"Question ","# Question "]
[null,"Voulez-vous vraiment sortir sans terminer","# Voulez-vous vraiment sortir sans terminer"]
[null,"Validation","# Validation"]
[null,"Combien font ","# Combien font "]
[null,"Indiquez une clef valide sous forme de caractères séparés par des -","# Indiquez une clef valide sous forme de caractères séparés par des -"]
[null,"Un classeur va s'ouvrir avec les références pour commander une licence","# Un classeur va s'ouvrir avec les références pour commander une licence"]
[null,"information","# information"]
[null,"Activation jusqu'au ","# Activation jusqu'au "]
[null,"Fin","# Fin"]
[null,"La réponse attendue était ","# La réponse attendue était "]
[null,"Réponse","# Réponse"]
[null,"Indiquez une réponse","# Indiquez une réponse"]

{"sheet":"Activation","index":3,"n_rows":19,"n_cols":4,"rows_kept":19,"cut":false,"hidden":false,"merged":[]}
[]
[]
[null,null,"Achat"]
[null,null,null,"Si à l'utilisation, le produit vous convient, vous pouvez obtenir une version pour 100 € HT en me contactant via mon email pour que je vous fasse une facture"]
[]
[null,null,null,"nicolas.sylvain1@libertysurf.fr"]
[null,null,null,"Et en indiquant le code ci-dessous :"]
[]
[]
[]
[null,null,null,"Vous pouvez aussi faire un paiement en CB sur internet en passant par ce site :"]
[null,null,null,{"$f":"HYPERLINK(\"https://www.1tpe.net/commander.php?u=sylvain1&p=2&data=\"&D9,\"Page achat 1tpe\")","v":"Page achat 1tpe"}]
[null,null,null,"https://www.1tpe.net/commander.php?u=sylvain1&p=2"]
[]
[null,null,null,"Dans ce cas, vous aurez simplement à m'envoyer un mail avec le code ci-dessus pour recevoir un code valide"]
[null,null,null,"Et c'est le site qui vous procurera directement une facture (à télécharger dans la foulée),"]
[]
[null,null,"Activation"]
[null,null,null,"Une fois le paiement accepté, je vous envoie par mail un nouveau code d'activation que vous pourrez installer ici"]